Cogmind - Beta 12 @@@ ROGUE MODE // 2024.02.08 @ 22:04:39 Player: Six of Ten Result: Self-destructed Performance ------------- Evolutions (2) 1000 Regions Visited (4) 800 Robots Destroyed (11) 55 Value Destroyed (223) 223 Prototype IDs (0) 0 Alien Tech Used (0) 0 Bonus (0) 0 TOTAL SCORE: 2078 Bonus ------- None Cogmind --------- Core Integrity 137/550 Matter 243/300 Energy 140/140 System Corruption 10% Temperature Cool (38) Movement Core (150) Ox2 Location -8/Materials Parts ------- > --- POWER (1) -------- Light Deuterium Engine > --- PROPULSION (4) --- (None) > --- UTILITY (4) ------ (None) > --- WEAPON (2) ------- Minigun > --- INVENTORY (5) ---- Improved Sensor Array Improved Signal Interpreter Advanced ECM Suite Peak State ------------ > --- POWER ------------ Light Deuterium Engine > --- PROPULSION ------- (None) > --- UTILITY ---------- (None) > --- WEAPON ----------- Minigun Improved Datajack > --- INVENTORY -------- Improved Sensor Array Improved Signal Interpreter Advanced ECM Suite [Rating: 10] Favorites ----------- Power Light Ion Engine Engine Light Ion Engine Power Core Light Nuclear Core Propulsion Flight Unit Leg Aluminum Leg Flight Unit Flight Unit Utility Small Storage Unit Storage Small Storage Unit Weapon Assault Rifle Energy Gun Spread Laser Ballistic Gun Assault Rifle Special Melee Weapon Improved Datajack Build | -11 -10 -10 -9 -8 ------- Run | Jun Mat Min Mat Mat Slots Evolved 4 | . . . 2 2 Power . | . . . . . Propulsion 2 | . . . 1 1 Utility 2 | . . . 1 1 Weapon . | . . . . . Parts Attached 18 | 7 . 5 2 4 Power 4 | 1 . 1 . 2 Engine 3 | 1 . 1 . 1 Core 1 | . . . . 1 Reactor . | . . . . . Propulsion 4 | 2 . 2 . . Treads . | . . . . . Leg 2 | 2 . . . . Wheel . | . . . . . Hover . | . . . . . Flight 2 | . . 2 . . Utility 1 | 1 . . . . Device . | . . . . . Storage 1 | 1 . . . . Processor . | . . . . . Hackware . | . . . . . Protection . | . . . . . Artifact . | . . . . . Weapon 9 | 3 . 2 2 2 Energy Gun 2 | 1 . . 1 . Energy Cannon . | . . . . . Ballistic Gun 6 | 2 . 2 1 1 Ballistic Cannon . | . . . . . Launcher . | . . . . . Special Weapon . | . . . . . Impact Weapon . | . . . . . Slashing Weapon . | . . . . . Piercing Weapon . | . . . . . Special Melee Weapon 1 | . . . . 1 Unidentified Prototypes . | . . . . . Parts Lost 6 | . . . . 6 Power 2 | . . . . 2 Propulsion 1 | . . . . 1 Utility . | . . . . . Weapon 3 | . . . . 3 Highest Loss Streak 4 | . . . . 4 To Critical Strikes . | . . . . . Average Slot Usage (%) 52 | . 85 75 55 41 Engine 8 | . 14 14 11 5 Core 1 | . . . . 3 Leg 4 | . 28 15 . . Flight 15 | . . 12 22 15 Storage 1 | . 14 4 . . Energy Gun 7 | . 14 4 11 8 Ballistic Gun 12 | . 14 23 11 8 Naked Turns 14 | . . . . 14 Heaviest Build 14 | 14 14 14 8 10 Greatest Support 20 | 20 20 20 8 8 Greatest Overweight (x) 3 | . . 1 . 3 Average Overweight (x) . | . . . . . Largest Inventory Capacity 8 | 8 8 8 5 5 Average Capacity 5 | 6 8 5 5 5 Most Carried 6 | 5 4 6 5 5 Average Carried 4 | 2 4 4 5 4 Final Capacity 8 | 8 8 5 5 5 Final Carried 5 | 4 4 5 5 3 Class Distribution -------------------- 100% | Mutant Dominant Class ---------------- Mutant | -10/Materials Mutant | -10/Mines Mutant | -9/Materials Mutant | -8/Materials Resources | -11 -10 -10 -9 -8 ----------- Run | Jun Mat Min Mat Mat Matter Collected 409 | 165 . 87 . 157 Remotely . | . . . . . Salvage Created 283 | . . 87 . 196 Parts 23 | . . 12 . 11 Haulers Intercepted . | . . . . . Recyclers Shooed 1 | . . . . 1 Parts Field Recycled . | . . . . . Retrieved Matter . | . . . . . Parts Self-Destructed . | . . . . . Prevented . | . . . . . Kills | -11 -10 -10 -9 -8 ------- Run | Jun Mat Min Mat Mat Combat Hostiles Destroyed 10 | . . 6 . 4 Melee 1 | . . . . 1 Guns 9 | . . 6 . 3 Classes Destroyed 5 | . . 1 . 4 Watcher 1 | . . . . 1 Swarmer 7 | . . 6 . 1 Grunt 1 | . . . . 1 Brawler 1 | . . . . 1 Sentry 1 | . . . . 1 Best Kill Streak 3 | . . 3 . 2 Combat Bots Only 3 | . . 3 . 2 Max Kills in Single Turn 1 | . . 1 . 1 Gunslinging . | . . . . . Exploded . | . . . . . Melee 1 | . . . . 1 Uniques/NPCs Destroyed . | . . . . . Combat | -11 -10 -10 -9 -8 -------- Run | Jun Mat Min Mat Mat Damage Taken 1110 | . . 258 . 852 Core 466 | . . 53 . 413 Absorbed by Shields . | . . . . . Core Remaining (%) 92 | 100 . 78 100 . Volleys Fired 44 | . . 18 . 26 Largest 2 | . . 2 . 2 Hottest 85 | . . 70 . 85 Shots Fired 79 | . . 36 . 43 Gun 79 | . . 36 . 43 Cannon . | . . . . . Launcher . | . . . . . Special . | . . . . . Kinetic 52 | . . 26 . 26 Thermal 27 | . . 10 . 17 Explosive . | . . . . . Electromagnetic . | . . . . . Robot Hit Streak 9 | . . 5 . 9 Robot Miss Streak 6 | . . 4 . 6 Penetration Max . | . . . . . Secondary Targets 3 | . . 3 . . Max Gunslinging Chain 1 | . . 1 . . Shots Hit Robots 53 | . . 19 . 34 Core Hits 31 | . . 7 . 24 Critical Kills . | . . . . . Critical Parts Destroyed . | . . . . . Critical Strikes . | . . . . . Melee Attacks . | . . . . . Impact . | . . . . . Slashing . | . . . . . Piercing . | . . . . . Sneak Attacks . | . . . . . Combat Hostiles . | . . . . . Follow-up Attacks . | . . . . . Damage Inflicted 657 | . . 219 . 438 Guns 623 | . . 219 . 404 Cannons . | . . . . . Explosions . | . . . . . Melee . | . . . . . Ramming 34 | . . . . 34 Kinetic 374 | . . 156 . 218 Thermal 249 | . . 63 . 186 Explosive . | . . . . . Electromagnetic . | . . . . . Impact . | . . . . . Slashing . | . . . . . Piercing . | . . . . . Highest Corruption 10 | . . . . 10 Average Corruption 10 | . . . . 10 Corruption Purged . | . . . . . Corruption Blocked . | . . . . . Effects 2 | . . . . 2 Energy Discharges 2 | . . . . 2 Overload Shots . | . . . . . Overflow Damage . | . . . . . Projectiles . | . . . . . Explosions . | . . . . . Melee . | . . . . . Knockbacks . | . . . . . Impact . | . . . . . Kinetic . | . . . . . Secondary . | . . . . . Self-Inflicted Damage 15 | . . . . 15 Shots . | . . . . . Rammed 9 | . . . . 9 Targets Rammed 9 | . . . . 9 Kicked . | . . . . . Crushed . | . . . . . Highest Temperature 112 | . . 90 . 112 Average Temperature 29 | . . 32 . 27 Received Heat Transfer 333 | . . . . 333 Siege Activations . | . . . . . Robots Corrupted . | . . . . . Combat Hostiles . | . . . . . Parts Fried . | . . . . . Impact Corruptions . | . . . . . Robots Melted . | . . . . . Combat Hostiles . | . . . . . Parts Melted . | . . . . . Heat Transferred 425 | . . 185 . 240 Parts Sabotaged . | . . . . . Parts Stolen . | . . . . . Parts Stripped . | . . . . . Power Chain Reactions . | . . . . . Missiles Intercepted . | . . . . . Alert | -11 -10 -10 -9 -8 ------- Run | Jun Mat Min Mat Mat Peak Influence 224 | . . 170 86 224 Initial 66 | . . . 66 35 Average 98 | . . 98 76 121 Maximum Alert Level 1 | . . . . 1 Low Security (%) 77 | 100 100 100 100 61 Level 1 22 | . . . . 38 Level 2 . | . . . . . Level 3 . | . . . . . Level 4 . | . . . . . Level 5 . | . . . . . High Security . | . . . . . Max Security . | . . . . . Squads Dispatched 3 | . . . . 3 Investigation 1 | . . . . 1 Extermination . | . . . . . Reinforcement 2 | . . . . 2 Assault . | . . . . . Garrison . | . . . . . Intercept . | . . . . . Searches Triggered . | . . . . . Construction Impeded . | . . . . . Haulers Reinforced . | . . . . . Active Scanning Responses . | . . . . . Cargo Convoy Interrupts . | . . . . . Stealth | -11 -10 -10 -9 -8 --------- Run | Jun Mat Min Mat Mat Distress Signals 1 | . . . 1 . Communications Jammed . | . . . . . Distress Signals . | . . . . . Times Spotted 27 | . . 5 . 22 Peak Tracking Total 7 | . . 3 . 7 Tactical Retreats 4 | . . . . 4 Traps | -11 -10 -10 -9 -8 ------- Run | Jun Mat Min Mat Mat Traps Triggered 1 | . . . . 1 Indirectly . | . . . . . Trap Hack Attempts . | . . . . . Triggered . | . . . . . Disarmed . | . . . . . Reprogrammed . | . . . . . Reused . | . . . . . Traps Extracted . | . . . . . Installed . | . . . . . Triggered . | . . . . . Machines | -11 -10 -10 -9 -8 ---------- Run | Jun Mat Min Mat Mat Machines Disabled . | . . . . . Max in Single Turn . | . . . . . Machines Repaired . | . . . . . Machines Sabotaged . | . . . . . Overloaded Fab Kills . | . . . . . Hacking | -11 -10 -10 -9 -8 --------- Run | Jun Mat Min Mat Mat Machines Accessed 4 | . . . 2 2 Terminals 4 | . . . 2 2 Fabricators . | . . . . . Repair Stations . | . . . . . Recycling Units . | . . . . . Scanalyzers . | . . . . . Garrison Access . | . . . . . Total Hacks 13 | . . . 6 7 Successful 3 | . . . 2 1 Failed 10 | . . . 4 6 Catastrophic 2 | . . . 1 1 Database Lockouts . | . . . . . Manual 11 | . . . 4 7 Terminals 13 | . . . 6 7 Fabricators . | . . . . . Repair Stations . | . . . . . Recycling Units . | . . . . . Scanalyzers . | . . . . . Garrison Access . | . . . . . Terminal Hacks 3 | . . . 2 1 Record 1 | . . . 1 . Unreport Threat 1 | . . . . 1 Locate Traps 1 | . . . 1 . Fabricator Hacks . | . . . . . Repair Station Hacks . | . . . . . Recycling Unit Hacks . | . . . . . Scanalyzer . | . . . . . Garrison Access Hacks . | . . . . . Unauthorized Hacks . | . . . . . Terminals . | . . . . . Fabricators . | . . . . . Repair Stations . | . . . . . Recycling Units . | . . . . . Scanalyzers . | . . . . . Garrison Access . | . . . . . Data Cores Recovered . | . . . . . Used . | . . . . . Hacking Detections 4 | . . . 2 2 Full Trace Events . | . . . . . Feedback Events . | . . . . . Feedback Blocked . | . . . . . Robot Schematics Acquired . | . . . . . Robots Built . | . . . . . Authchips . | . . . . . Time . | . . . . . Total Robot Build Rating . | . . . . . Part Schematics Acquired . | . . . . . Parts Built . | . . . . . Authchips . | . . . . . Time . | . . . . . Total Part Build Rating . | . . . . . Parts Repaired . | . . . . . Time . | . . . . . Parts Recycled . | . . . . . Recycled Matter . | . . . . . Retrieved Matter . | . . . . . Retrieved Components . | . . . . . Parts Scanalyzed . | . . . . . Part Schematics Acquired . | . . . . . Parts Damaged . | . . . . . Bothacking | -11 -10 -10 -9 -8 ------------ Run | Jun Mat Min Mat Mat Used RIF Installer . | . . . . . Robots Hacked . | . . . . . Non-combat . | . . . . . Combat . | . . . . . Robot Hacks Applied . | . . . . . Relay Couplers Released . | . . . . . Fabnet Peak Effective % . | . . . . . Robots Rewired . | . . . . . Allies Hacked . | . . . . . Hacks Repelled . | . . . . . Allies | -11 -10 -10 -9 -8 -------- Run | Jun Mat Min Mat Mat Total Allies . | . . . . . Largest Group . | . . . . . Highest-Rated Group . | . . . . . Highest-Rated Ally . | . . . . . Total Orders . | . . . . . Ally Attacks . | . . . . . Total Damage . | . . . . . Kills . | . . . . . Allies Corrupted . | . . . . . Allies Melted . | . . . . . Intel | -11 -10 -10 -9 -8 ------- Run | Jun Mat Min Mat Mat Robot Analysis Total . | . . . . . Derelict Logs Recovered . | . . . . . Drone Launches . | . . . . . Drone Recoveries . | . . . . . Exploration | -11 -10 -10 -9 -8 ------------- Run | Jun Mat Min Mat Mat Turns Passed 646 | 58 9 145 67 367 Spaces Moved 783 | 41 8 88 153 493 Core 24 | 12 . . . 12 Treads . | . . . . . Legs 44 | 29 8 7 . . Wheels . | . . . . . Hover . | . . . . . Flight 715 | . . 81 153 481 Fastest Speed 37 | 50 120 37 37 37 Average Speed 57 | 99 120 92 37 52 Slowest Speed 200 | 120 120 130 37 200 Overloaded Moves . | . . . . . Propulsion Burnouts . | . . . . . Robots Hopped 5 | . . . . 5 Cave-ins Triggered . | . . . . . Exploration Rate (%) 18 | 3 4 34 21 30 Regions Visited 4 Branch Regions 1 Pre-discovered Areas . | . . . . . Known Exits Taken . | . . . . . Unknown Exits Taken 4 | 1 1 1 1 . Scrap Searched . | . . . . . Spaces Dug . | . . . . . Terrain Destroyed . | . . . . . Melee . | . . . . . Projectile . | . . . . . AOE . | . . . . . Terrain Rammed . | . . . . . Walls Destroyed . | . . . . . Machines Disabled . | . . . . . Actions | -11 -10 -10 -9 -8 --------- Run | Jun Mat Min Mat Mat Total 900 | 57 7 117 162 557 Wait 21 | . . . 5 16 Move 769 | 40 7 87 152 483 Hop 5 | . . . . 5 Pick Up 22 | 10 . 4 1 7 Fast Attach 2 | . . . 1 1 Attach 9 | 6 . . . 3 Detach . | . . . . . Swap 7 | 1 . 5 1 . Drop 12 | . . 3 2 7 Fire 44 | . . 18 . 26 Melee . | . . . . . Ram 9 | . . . . 9 Kick . | . . . . . Crush . | . . . . . Escape Stasis . | . . . . . Rewire . | . . . . . Trap . | . . . . . Miscellaneous . | . . . . . Route ------- -11/Junkyard -10/Materials -10/Mines -9/Materials -8/Materials History --------- Turn | Location | Event 4 | -11/Junkyard | Discovered new exit (range 15) 59 | -11/Junkyard | Entered Materials 59 | -10/Materials | Discovered new exit (range 7) 68 | -10/Materials | Entered Mines 204 | -10/Mines | Discovered new exit (range 14) 213 | -10/Mines | Entered Materials 213 | -9/Materials | Evolved 2 slots: Propulsion x1, Utility x1 265 | -9/Materials | Discovered new exit (range 16) 280 | -9/Materials | Entered another Materials area 280 | -8/Materials | Evolved 2 slots: Propulsion x1, Utility x1 331 | -8/Materials | Build established: Mutant 616 | -8/Materials | System corruption reached 10% 622 | -8/Materials | Core integrity fell below 50% 646 | -8/Materials | Lost 4 parts (1p1n2w) 647 | -8/Materials | Self-destructed Last Messages --------------- 00616_ Slammed into B-36 Bruiser. 00618_ System corrupted: Energy discharge (-35). 00618_ Slug penetrates Wall. 00618_ Knocked back. 00619_ Slammed into B-36 Bruiser. 00620_ B-36 Bruiser destroyed. [Achievement: Fist Fight] 00620_ Destabilizing: Core damaged (-27). 00621_ Acquired 13 matter. 00621_ Slammed into U-05 Engineer. 00626_ Slammed into K-01 Serf. 00631_ Acquired Minigun. 00633_ System corrupted: Energy discharge (-28). 00633_ Critical hit (Burn: +37). 00635_ M-13 Machinist repairs K-01 Serf. 00637_ Penetrated by Slug. 00645_ Critical hit (Burn: +37). 00646_ Imp. Datajack destroyed. 00646_ Penetrated by Slug. 00647_ U-05 Engineer builds a Door. Map ----- +----------------------------------------------------+ | ???????????????????#[ """ ## ###############+### | | ???????????????????# #=*! | | ???????????????????# + " | | ???????????????????# =! # "%" | | ???????????????????# !/ ######### ############ | | ???????????????????# #???????# #??????????# | | ??????????????????############??????# #??????????# | | ??????????????????? ######T######## #??????????# | | ????????????????????# ###????????# | | ????????????????????# T#????????# | | ????????????????????# ""#????????? | | ????????????????????# ###????????? | | ????????????????????# #??????????? | | ??????????????????????##### = #??????????? | | ??????????????????????????##/######## #??????????? | | ???????????????????????????#%#??????# #??????????? | | ???????????????????????????#=#??????#+#??????????? | | ???????????????????????????#%#?????? ??????????? | | ???????????????????????????#%#?????? =??????????? | | ???????????????????????????# #?????# ?????????? | | ???????????????????????????# #?????# = ?????????? | | ???????????????????????????#%#?????# = ????????? | | ?????????????????????#######+##????# ????????? | | ?????????????????????# g % #????# ???????? | | ?????????????????????# hgg #????# ???????? | | ?????????????????????# @ #????#/###+##??????? | | ?????????????????????#g m #????# ????????????? | | ??????????????????? + #????# ????????????? | | ?????????????????# # #????? ????????????? | | ?????????????????# ?# #????? ????????????? | | ???????????????? ???# #????? ????????????? | | ???????????????##????# ] #??????????????????? | | ?????????????????????##########??????????????????? | | ?????????????????????????????????????????????????? | | ?????????????????????????????????????????????????? | | ?????????????????????????????????????????????????? | | ?????????????????????????????????????????????????? | | ?????????????????????????????????????????????????? | | ?????????????????????????????????????????????????? | | ?????????????????????????????????????????????????? | | ?????????????????????????????????????????????????? | | ?????????????????????????????????????????????????? | | ?????????????????????????????????????????????????? | | ?????????????????????????????????????????????????? | | ?????????????????????????????????????????????????? | | ?????????????????????????????????????????????????? | | ?????????????????????????????????????????????????? | | ?????????????????????????????????????????????????? | | ?????????????????????????????????????????????????? | | ?????????????????????????????????????????????????? | +----------------------------------------------------+ Best States ------------- Heat Dissipation 31 Energy Generation 14 Energy Capacity 250 Matter Stores 290 Matter Capacity 300 Sight Range 16 Terrain Scan Density 10 Evasion (%) 62 Item Schematics ----------------- None Robot Schematics ------------------ None Fabricated ------------ Nothing Alien Tech Used ----------------- None Achievements -------------- Everything Is Under Control Fist Fight Challenges ------------ None Game ------ Seed FusionDecoyStabilizer Manual? 0 Play Time 00:16:53 Cumulative 6.6 hours Start 2024.02.08 @ 21:49:41 End 2024.02.08 @ 22:04:39 Sessions 1 Manual Loads 0 Difficulty Rogue Special Mode None Game No. 12 Rogue 12 Adventurer 0 Explorer 0 Win Type - Total 0 Types 0/0/0/0/0/0/0/0/0 Lore% 2 Gallery% 13 Achievement% 12 Wizard Run 0 Options --------- ASCII 0 Keyboard 0 Movement Numpad Keybinds 0 Fullscreen 2 Font 18/SmallcapsGlow Map View 76x50 Tactical HUD 1 Map Filters NONE Filters NONE Steam 1 RUN: ae77a8f1-200d-471e-832f-004fc627521a